Cogmind - Beta 11 *** ADVENTURER MODE // 2022.04.15 @ 19:10:21 Player: Ender Result: Destroyed by S-27 Virus with Autogun Performance ------------- Evolutions (3) 1500 Regions Visited (10) 2000 Robots Destroyed (96) 480 Value Destroyed (3270) 3270 Prototype IDs (0) 0 Alien Tech Used (0) 0 Bonus (968) 968 TOTAL SCORE: 8218 Bonus ------- High Alert Combat Kills 34 Follower Combat Kills 234 Entered Garrisons 200 Used RIF Installer 500 Cogmind --------- Core Integrity 0/700 Matter 213/300 Energy 99/100 System Corruption 11% Temperature Cool (0) Movement Core (50) Location -7/Lower Caves Parts ------- > --- POWER (2) -------- (None) > --- PROPULSION (3) --- (None) > --- UTILITY (4) ------ Machine Analyzer Launcher Guidance Computer Improved Target Analyzer > --- WEAPON (4) ------- (None) > --- INVENTORY (5) ---- Improved Deuterium Engine Improved Deuterium Engine Armored Treads Medium Treads Small Storage Unit Peak State ------------ > --- POWER ------------ Light Nuclear Core Micro Nuclear Core > --- PROPULSION ------- Carbon-fiber Leg Carbon-fiber Leg Carbon-fiber Leg > --- UTILITY ---------- Improved Heat Sink Small Storage Unit Improved Target Analyzer Relay Coupler [Specialist] > --- WEAPON ----------- Autogun Autogun Flak Gun Remote Datajack > --- INVENTORY -------- Micro Nuclear Core Light Treads Armored Treads Improved Sensor Array Shock Rifle Shock Rifle Heavy Laser Autogun [Rating: 44] Favorites ----------- Power Improved Ion Engine Engine Improved Ion Engine Power Core Light Nuclear Core Propulsion Carbon-fiber Leg Treads Light Treads Leg Carbon-fiber Leg Wheel Compact Wheel Utility Small Storage Unit Device Improved Heat Sink Storage Small Storage Unit Processor Improved Target Analyzer Hackware Hacking Suite Weapon Autogun Energy Gun Particle Gun Ballistic Gun Autogun Special Weapon Remote Datajack Slashing Weapon Ripper Special Melee Weapon Datajack Build | -11 -10 -10 -9 -9 -8 -8 -8 -7 -7 -7 ------- Run | Scr Mat Min Mat Min Mat Sto Gar Fac Low Low Slots Evolved 6 | . . . 2 . 2 . . 2 . . Power 1 | . . . . . 1 . . . . . Propulsion 1 | . . . . . . . . 1 . . Utility 2 | . . . 1 . . . . 1 . . Weapon 2 | . . . 1 . 1 . . . . . Parts Attached 136 | 7 10 . 7 5 1 29 24 41 12 . Power 23 | 1 . . 1 . . 10 4 6 1 . Engine 19 | 1 . . 1 . . 10 4 2 1 . Core 4 | . . . . . . . . 4 . . Reactor . | . . . . . . . . . . . Propulsion 36 | 2 2 . . 2 . 7 7 13 3 . Treads 13 | . . . . . . 3 4 3 3 . Leg 21 | . 2 . . 2 . 4 3 10 . . Wheel 2 | 2 . . . . . . . . . . Hover . | . . . . . . . . . . . Flight . | . . . . . . . . . . . Utility 26 | 2 1 . 2 . . 3 3 11 4 . Device 17 | 1 1 . 2 . . 1 3 6 3 . Storage 2 | 1 . . . . . . . 1 . . Processor 3 | . . . . . . . . 2 1 . Hackware 4 | . . . . . . 2 . 2 . . Protection . | . . . . . . . . . . . Artifact . | . . . . . . . . . . . Weapon 51 | 2 7 . 4 3 1 9 10 11 4 . Energy Gun 13 | 2 3 . . 1 1 . 5 . 1 . Energy Cannon . | . . . . . . . . . . . Ballistic Gun 24 | . 2 . 3 . . 5 4 7 3 . Ballistic Cannon . | . . . . . . . . . . . Launcher . | . . . . . . . . . . . Special Weapon 4 | . . . . . . 1 1 2 . . Impact Weapon . | . . . . . . . . . . . Slashing Weapon 5 | . . . . 1 . 3 . 1 . . Piercing Weapon . | . . . . . . . . . . . Special Melee Weapon 5 | . 2 . 1 1 . . . 1 . . Unidentified Prototypes . | . . . . . . . . . . . Corrupted Parts 2 | . . . . . . . . . 2 . System Corruption 6 | . . . . . . . . . 6 . Parts Lost 43 | . . . . . 2 3 13 10 15 . Power 8 | . . . . . . 1 3 3 1 . Propulsion 13 | . . . . . 1 1 3 4 4 . Utility 7 | . . . . . 1 . 1 3 2 . Weapon 15 | . . . . . . 1 6 . 8 . Highest Loss Streak 12 | . . . . . 2 1 12 4 7 . To Critical Strikes . | . . . . . . . . . . . Average Slot Usage (%) 96 | . 97 100 99 100 88 98 92 98 85 23 Engine 11 | . 14 14 11 11 9 17 14 8 7 . Core 2 | . . . . . . . . 5 1 . Treads 2 | . . . . . . 1 9 2 1 . Leg 17 | . . 28 22 22 17 16 7 18 18 . Wheel 1 | . 25 . . . . . . . . . Device 11 | . 14 14 21 22 17 3 4 12 6 . Storage 8 | . 14 14 11 11 9 9 9 6 6 . Processor 3 | . . . . . . . . 5 15 23 Hackware 4 | . . . . . . 14 12 3 . . Energy Gun 7 | . 21 28 13 7 9 7 11 1 4 . Ballistic Gun 17 | . 4 . 15 22 18 17 12 21 14 . Special Weapon 2 | . . . . . . . . 5 5 . Slashing Weapon 2 | . . . . 1 9 10 9 . . . Special Melee Weapon 1 | . 1 . 3 2 . . . 1 . . Naked Turns . | . . . . . . . . . . . Heaviest Build 36 | 15 15 15 21 21 24 32 33 35 36 . Greatest Support 76 | 26 26 20 20 20 20 40 43 48 76 3 Greatest Overweight (x) 2 | . . . 1 1 2 1 1 2 2 . Average Overweight (x) . | . . . . . 1 . . . . . Largest Inventory Capacity 8 | 8 8 8 8 8 8 8 8 8 8 5 Average Capacity 7 | 7 8 8 8 8 8 8 8 7 7 5 Most Carried 8 | 6 8 8 8 8 8 8 8 8 8 5 Average Carried 7 | 3 7 7 7 8 7 7 7 7 6 5 Final Capacity 8 | 8 8 8 8 8 8 8 8 8 5 5 Final Carried 8 | 6 8 8 8 8 8 8 8 8 5 5 Class Distribution -------------------- 35% | Scavenger-Gunner 17% | Mutant 13% | Skirmisher 10% | Scavenger-Skirmisher 10% | Hacker-Gunner 7% | Hacker-Mutant 5% | Scavenger-Mutant Dominant Class ---------------- Mutant | -10/Materials Mutant | -10/Mines Skirmisher | -9/Materials Skirmisher | -9/Mines Skirmisher | -8/Materials Hacker-Gunner | -8/Storage Hacker-Mutant | -8/Garrison Scavenger-Gunner | -7/Factory Scavenger-Skirmisher | -7/Lower Caves Mutant | -7/Lower Caves Resources | -11 -10 -10 -9 -9 -8 -8 -8 -7 -7 -7 ----------- Run | Scr Mat Min Mat Min Mat Sto Gar Fac Low Low Matter Collected 3034 | 217 120 40 52 146 . 630 358 1047 424 . Remotely . | . . . . . . . . . . . Salvage Created 3508 | 119 259 . 61 85 . 1192 622 893 277 . Parts 204 | 6 12 . 9 6 . 76 26 58 11 . Haulers Intercepted 2 | . 1 . . . . . . 1 . . Recyclers Shooed . | . . . . . . . . . . . Parts Field Recycled . | . . . . . . . . . . . Retrieved Matter . | . . . . . . . . . . . Parts Self-Destructed 11 | . . . . . . . . . 10 1 Prevented 3 | . . . . . . . . . 2 1 Kills | -11 -10 -10 -9 -9 -8 -8 -8 -7 -7 -7 ------- Run | Scr Mat Min Mat Min Mat Sto Gar Fac Low Low Combat Hostiles Destroyed 80 | . 4 . 3 2 . 25 15 21 10 . Melee 4 | . . . . . . 2 2 . . . Guns 75 | . 4 . 3 2 . 23 12 21 10 . Cannons 1 | . . . . . . . 1 . . . Classes Destroyed 13 | 2 3 . 1 . . 5 . 2 . . Worker 3 | . . . . . . 1 . 2 . . Builder 1 | . . . . . . 1 . . . . Tunneler 2 | 2 . . . . . . . . . . Hauler 2 | . 1 . . . . . . 1 . . Recycler 2 | 1 . . . . . . . 1 . . Operator 1 | . . . . . . 1 . . . . Watcher 5 | . 1 . 2 . . 1 . 1 . . Swarmer 28 | . . . 3 . . 4 4 8 9 . Grunt 27 | . 4 . . 2 . 10 8 3 . . Duelist 2 | . . . . . . 2 . . . . Sentry 13 | . . . . . . 9 3 1 . . Hunter 3 | . . . . . . . . 2 1 . Programmer 7 | . . . . . . . . 7 . . Best Kill Streak 6 | 3 2 . 3 2 . 6 4 3 4 . Combat Bots Only 6 | . 2 . 2 2 . 6 4 3 4 . Max Kills in Single Turn 2 | 2 1 . 1 1 . 2 1 2 1 . Gunslinging 1 | . . . . . . 1 . 1 . . Exploded . | . . . . . . . . . . . Melee 1 | . . . . . . 1 1 . . . Uniques/NPCs Destroyed . | . . . . . . . . . . . Combat | -11 -10 -10 -9 -9 -8 -8 -8 -7 -7 -7 -------- Run | Scr Mat Min Mat Min Mat Sto Gar Fac Low Low Damage Taken 5919 | . 61 . 140 90 289 808 1645 1077 1696 113 Core 1268 | . 34 . 26 . 108 184 208 197 398 113 Absorbed by Shields 73 | . . . . . . . 73 . . . Regen/Repaired (Parts) 154 | . 14 . . . . . . 140 . . Core Remaining (%) 72 | 100 . 86 . 93 . . 9 . . . Volleys Fired 256 | 4 18 . 9 3 1 70 54 65 32 . Largest 4 | 2 2 . 3 3 3 3 4 3 3 . Hottest 210 | 90 105 . 108 93 108 111 210 74 96 . Shots Fired 595 | 8 33 . 25 9 3 163 116 173 65 . Gun 572 | 8 33 . 25 9 3 153 114 162 65 . Cannon . | . . . . . . . . . . . Launcher . | . . . . . . . . . . . Special 23 | . . . . . . 10 2 11 . . Kinetic 422 | . 7 . 16 6 2 112 63 162 54 . Thermal 137 | 4 16 . 9 3 1 51 53 . . . Explosive . | . . . . . . . . . . . Electromagnetic 25 | 4 10 . . . . . . . 11 . Robot Hit Streak 31 | 6 31 . 2 14 1 29 30 12 10 . Robot Miss Streak 5 | . 1 . 3 . 2 3 2 5 5 . Penetration Max . | . . . . . . . . . . . Secondary Targets 7 | . . . . . . 3 2 2 . . Max Gunslinging Chain 1 | . . . . . . 1 1 1 . . Shots Hit Robots 475 | 6 32 . 12 10 1 125 102 139 48 . Core Hits 236 | 3 10 . 7 5 . 56 33 98 24 . Critical Kills 3 | . . . . . . 1 1 1 . . Critical Parts Destroyed 2 | . . . . . . . . 2 . . Critical Strikes 12 | . . . . . . 5 4 3 . . Burn 5 | . . . . . . 3 2 . . . Destroy 5 | . . . . . . 1 1 3 . . Sever 2 | . . . . . . 1 1 . . . Melee Attacks 41 | . 4 . 2 3 . 11 7 14 . . Impact . | . . . . . . . . . . . Slashing 19 | . . . . . . 11 7 1 . . Piercing . | . . . . . . . . . . . Sneak Attacks 12 | . 4 . 2 1 . . . 5 . . Combat Hostiles . | . . . . . . . . . . . Follow-up Attacks . | . . . . . . . . . . . Damage Inflicted 6990 | 91 388 . 126 125 9 1966 1539 2038 708 . Guns 6463 | 91 388 . 126 125 9 1789 1269 1958 708 . Cannons . | . . . . . . . . . . . Explosions . | . . . . . . . . . . . Melee 482 | . . . . . . 153 249 80 . . Ramming . | . . . . . . . . . . . Kinetic 4604 | . 40 . 98 86 9 1250 624 1958 539 . Thermal 1516 | 37 183 . 28 39 . 563 666 . . . Explosive . | . . . . . . . . . . . Electromagnetic 388 | 54 165 . . . . . . . 169 . Impact . | . . . . . . . . . . . Slashing 482 | . . . . . . 153 249 80 . . Piercing . | . . . . . . . . . . . Highest Corruption 11 | . . . 1 1 . . . 5 11 11 Average Corruption 4 | . . . 1 1 . . . 4 5 11 Corruption Purged . | . . . . . . . . . . . Corruption Blocked . | . . . . . . . . . . . Effects 92 | . . . 3 4 . . . 58 27 . Message Errors 16 | . . . 1 1 . . . 10 4 . Matter Fused 28 | . . . 1 2 . . . 18 7 . Heat Flow Errors 13 | . . . . 1 . . . 7 5 . Energy Discharges 8 | . . . . . . . . 6 2 . Parts Rejected 1 | . . . . . . . . . 1 . Data Loss (minor) 12 | . . . . . . . . 7 5 . Data Loss (major) 6 | . . . 1 . . . . 5 . . Misfires 5 | . . . . . . . . 4 1 . Alerts 1 | . . . . . . . . . 1 . Weapon Failures 2 | . . . . . . . . 1 1 . Overload Shots . | . . . . . . . . . . . Overflow Damage 18 | . . . . . . 18 . . . . Projectiles . | . . . . . . . . . . . Explosions . | . . . . . . . . . . . Melee 18 | . . . . . . 18 . . . . Knockbacks . | . . . . . . . . . . . Impact . | . . . . . . . . . . . Kinetic . | . . . . . . . . . . . Secondary . | . . . . . . . . . . . Self-Inflicted Damage . | . . . . . . . . . . . Shots . | . . . . . . . . . . . Rammed . | . . . . . . . . . . . Targets Rammed . | . . . . . . . . . . . Kicked . | . . . . . . . . . . . Crushed . | . . . . . . . . . . . Highest Temperature 668 | 90 135 . 104 107 33 362 668 216 251 . Average Temperature 115 | 40 46 . 40 54 19 122 207 49 77 . Received Heat Transfer 2466 | . 42 . 42 18 126 396 1038 159 603 42 Effects 37 | . . . . . . 9 28 . . . Shutdowns 8 | . . . . . . 1 7 . . . Energy Bleed 7 | . . . . . . 4 3 . . . Interference 11 | . . . . . . 2 9 . . . Matter Decay 4 | . . . . . . 1 3 . . . Short Circuit 1 | . . . . . . . 1 . . . Damage (minor) 2 | . . . . . . 1 1 . . . Damage (major) 4 | . . . . . . . 4 . . . Siege Activations . | . . . . . . . . . . . Robots Corrupted . | . . . . . . . . . . . Combat Hostiles . | . . . . . . . . . . . Parts Fried 4 | . 2 . . . . . . . 2 . Impact Corruptions . | . . . . . . . . . . . Robots Melted . | . . . . . . . . . . . Combat Hostiles . | . . . . . . . . . . . Parts Melted 7 | . 2 . . . . 4 1 . . . Heat Transferred 4047 | 111 445 . 74 111 . 1567 1739 . . . Parts Sabotaged . | . . . . . . . . . . . Parts Stolen . | . . . . . . . . . . . Parts Stripped . | . . . . . . . . . . . Power Chain Reactions . | . . . . . . . . . . . Missiles Intercepted . | . . . . . . . . . . . Alert | -11 -10 -10 -9 -9 -8 -8 -8 -7 -7 -7 ------- Run | Scr Mat Min Mat Min Mat Sto Gar Fac Low Low Peak Influence 462 | 15 170 3 109 72 23 422 462 320 . . Initial 209 | . 8 3 . 22 23 . 82 209 . . Average 95 | 3 71 3 12 33 21 154 267 87 . . Maximum Alert Level 2 | . . . . . . 2 2 1 . . Low Security (%) 79 | 100 100 100 100 100 100 60 31 82 . . Level 1 17 | . . . . . . 36 49 17 . . Level 2 2 | . . . . . . 3 19 . . . Level 3 . | . . . . . . . . . . . Level 4 . | . . . . . . . . . . . Level 5 . | . . . . . . . . . . . High Security . | . . . . . . . . . . . Max Security . | . . . . . . . . . . . Squads Dispatched 17 | . 1 . 1 . 1 4 . 10 . . Investigation 3 | . 1 . . . . . . 2 . . Extermination 5 | . . . . . . . . 5 . . Reinforcement 4 | . . . 1 . 1 2 . . . . Assault 2 | . . . . . . 2 . . . . Garrison 3 | . . . . . . . . 3 . . Intercept . | . . . . . . . . . . . Searches Triggered . | . . . . . . . . . . . Construction Impeded . | . . . . . . . . . . . Haulers Reinforced . | . . . . . . . . . . . Active Scanning Responses . | . . . . . . . . . . . Cargo Convoy Interrupts . | . . . . . . . . . . . Stealth | -11 -10 -10 -9 -9 -8 -8 -8 -7 -7 -7 --------- Run | Scr Mat Min Mat Min Mat Sto Gar Fac Low Low Distress Signals 5 | . 1 . 1 . 1 1 . 1 . . Communications Jammed . | . . . . . . . . . . . Distress Signals . | . . . . . . . . . . . Times Spotted 150 | . 9 . 8 9 6 37 23 34 20 4 Peak Tracking Total 12 | . 3 . 3 8 5 6 6 6 12 5 Tactical Retreats 18 | . 1 . 1 . . 2 9 4 1 . Traps | -11 -10 -10 -9 -9 -8 -8 -8 -7 -7 -7 ------- Run | Scr Mat Min Mat Min Mat Sto Gar Fac Low Low Traps Triggered 5 | . 1 . 1 . . 1 1 1 . . Indirectly . | . . . . . . . . . . . Trap Hack Attempts . | . . . . . . . . . . . Triggered . | . . . . . . . . . . . Disarmed . | . . . . . . . . . . . Reprogrammed . | . . . . . . . . . . . Reused . | . . . . . . . . . . . Traps Extracted . | . . . . . . . . . . . Installed . | . . . . . . . . . . . Triggered 1 | . . . . . . . . . . 1 Machines | -11 -10 -10 -9 -9 -8 -8 -8 -7 -7 -7 ---------- Run | Scr Mat Min Mat Min Mat Sto Gar Fac Low Low Machines Disabled 4 | . . . 2 . . 2 . . . . Max in Single Turn 1 | . . . 1 . . 1 . . . . Garrison Access 1 | . . . . . . . . 1 . . Machines Sabotaged . | . . . . . . . . . . . Garrisons Compromised . | . . . . . . . . . . . Overloaded Fab Kills . | . . . . . . . . . . . Hacking | -11 -10 -10 -9 -9 -8 -8 -8 -7 -7 -7 --------- Run | Scr Mat Min Mat Min Mat Sto Gar Fac Low Low Machines Accessed 29 | . 10 . 1 1 . 10 . 7 . . Terminals 20 | . 7 . . . . 8 . 5 . . Fabricators . | . . . . . . . . . . . Repair Stations 2 | . 1 . . . . . . 1 . . Recycling Units 3 | . 2 . . . . 1 . . . . Scanalyzers 1 | . . . 1 . . . . . . . Garrison Access 2 | . . . . . . 1 . 1 . . Total Hacks 85 | . 27 . 2 1 . 35 . 20 . . Successful 49 | . 16 . 2 1 . 20 . 10 . . Failed 34 | . 10 . . . . 14 . 10 . . Catastrophic 3 | . 1 . . . . . . 2 . . Database Lockouts 2 | . 1 . . . . 1 . . . . Manual 56 | . 19 . . . . 29 . 8 . . Terminals 69 | . 23 . . . . 32 . 14 . . Fabricators . | . . . . . . . . . . . Repair Stations 6 | . 2 . . . . . . 4 . . Recycling Units 3 | . 2 . . . . 1 . . . . Scanalyzers 2 | . . . 2 . . . . . . . Garrison Access 4 | . . . . . . 2 . 2 . . Terminal Hacks 36 | . 12 . . 1 . 18 . 5 . . Record 2 | . . . . . . . . 2 . . Part Schematic 3 | . . . . . . 3 . . . . Robot Analysis 4 | . 4 . . . . . . . . . Open Door 5 | . . . . 1 . 4 . . . . Open DSF 1 | . . . . . . . . 1 . . Level Access Points 2 | . . . . . . 1 . 1 . . Branch Access Points 3 | . 1 . . . . 2 . . . . Emergency Access Points 1 | . . . . . . 1 . . . . Terminal Index 3 | . 1 . . . . 1 . 1 . . Fabricator Index 1 | . . . . . . 1 . . . . Alert Level 1 | . 1 . . . . . . . . . Unreport Threat 1 | . . . . . . 1 . . . . Maintenance Status 1 | . . . . . . 1 . . . . Investigation Status 1 | . 1 . . . . . . . . . Garrison Status 1 | . . . . . . 1 . . . . Recall Investigation 1 | . 1 . . . . . . . . . Recall Reinforcements 1 | . . . . . . 1 . . . . Hauler Manifests 2 | . 2 . . . . . . . . . Zone Layout 2 | . 1 . . . . 1 . . . . Fabricator Hacks . | . . . . . . . . . . . Repair Station Hacks 5 | . 2 . . . . . . 3 . . Scan Component 2 | . 1 . . . . . . 1 . . Repair 2 | . 1 . . . . . . 1 . . Refit 1 | . . . . . . . . 1 . . Recycling Unit Hacks 3 | . 2 . . . . 1 . . . . Report Inventory 2 | . 1 . . . . 1 . . . . Retrieve Components 1 | . 1 . . . . . . . . . Scanalyzer 2 | . . . 2 . . . . . . . Insert Component 1 | . . . 1 . . . . . . . Analyze 1 | . . . 1 . . . . . . . Garrison Access Hacks 3 | . . . . . . 1 . 2 . . Unlock Access 1 | . . . . . . 1 . . . . Seal Access 1 | . . . . . . . . 1 . . Coupler Status 1 | . . . . . . . . 1 . . Unauthorized Hacks . | . . . . . . . . . . . Terminals . | . . . . . . . . . . . Fabricators . | . . . . . . . . . . . Repair Stations . | . . . . . . . . . . . Recycling Units . | . . . . . . . . . . . Scanalyzers . | . . . . . . . . . . . Garrison Access . | . . . . . . . . . . . Data Cores Recovered . | . . . . . . . . . . . Used . | . . . . . . . . . . . Hacking Detections 19 | . 8 . 1 . . 4 . 6 . . Full Trace Events 2 | . . . . . . . . 2 . . Feedback Events . | . . . . . . . . . . . Feedback Blocked . | . . . . . . . . . . . Robot Schematics Acquired . | . . . . . . . . . . . Robots Built . | . . . . . . . . . . . Authchips . | . . . . . . . . . . . Time . | . . . . . . . . . . . Total Robot Build Rating . | . . . . . . . . . . . Part Schematics Acquired 4 | . . . 1 . . 3 . . . . Parts Built . | . . . . . . . . . . . Authchips . | . . . . . . . . . . . Time . | . . . . . . . . . . . Total Part Build Rating . | . . . . . . . . . . . Parts Repaired 2 | . 1 . . . . . . 1 . . Time 52 | . 26 . . . . . . 26 . . Parts Recycled . | . . . . . . . . . . . Recycled Matter . | . . . . . . . . . . . Retrieved Matter . | . . . . . . . . . . . Retrieved Components 1 | . 1 . . . . . . . . . Parts Scanalyzed 1 | . . . 1 . . . . . . . Part Schematics Acquired 1 | . . . 1 . . . . . . . Parts Damaged . | . . . . . . . . . . . Bothacking | -11 -10 -10 -9 -9 -8 -8 -8 -7 -7 -7 ------------ Run | Scr Mat Min Mat Min Mat Sto Gar Fac Low Low Used RIF Installer 1 | . . . . . . . 1 . . . Robots Hacked 9 | . 1 . 1 1 . . . 6 . . Non-combat 4 | . 1 . 1 . . . . 2 . . Combat 5 | . . . . 1 . . . 4 . . Robot Hacks Applied 18 | . 3 . 2 1 . . . 12 . . parse_system 8 | . 2 . 1 1 . . . 4 . . no_distress 4 | . 1 . 1 . . . . 2 . . find_chute 1 | . . . . . . . . 1 . . find_fabricator 1 | . . . . . . . . 1 . . find_shortcuts 1 | . . . . . . . . 1 . . link_fov 1 | . . . . . . . . 1 . . spike_heat 1 | . . . . . . . . 1 . . disable_weapons 1 | . . . . . . . . 1 . . Relay Couplers Released 3 | . . . . . . . . 3 . . Programmers 3 | . . . . . . . . 3 . . Attached 2 | . . . . . . . . 2 . . Fabnet Peak Effective % . | . . . . . . . . . . . Robots Rewired 2 | . . . . . . . . 2 . . Allies Hacked . | . . . . . . . . . . . Hacks Repelled . | . . . . . . . . . . . Allies | -11 -10 -10 -9 -9 -8 -8 -8 -7 -7 -7 -------- Run | Scr Mat Min Mat Min Mat Sto Gar Fac Low Low Total Allies 5 | . . . . . . 2 . 2 1 . Largest Group 2 | . . . . . . 2 . 2 1 . Highest-Rated Group 135 | . . . . . . 62 . 37 135 . Highest-Rated Ally 135 | . . . . . . 31 . 21 135 . Total Orders . | . . . . . . . . . . . Ally Attacks 41 | . . . . . . 29 . 12 . . Total Damage 660 | . . . . . . 499 . 161 . . Kills 7 | . . . . . . 5 . 2 . . Allies Corrupted . | . . . . . . . . . . . Allies Melted . | . . . . . . . . . . . Intel | -11 -10 -10 -9 -9 -8 -8 -8 -7 -7 -7 ------- Run | Scr Mat Min Mat Min Mat Sto Gar Fac Low Low Robot Analysis Total 3 | . 3 . . . . . . . . . Derelict Logs Recovered 3 | . . 1 . 1 . . . . 1 . Drone Launches . | . . . . . . . . . . . Drone Recoveries . | . . . . . . . . . . . Exploration | -11 -10 -10 -9 -9 -8 -8 -8 -7 -7 -7 ------------- Run | Scr Mat Min Mat Min Mat Sto Gar Fac Low Low Turns Passed 8333 | 74 532 95 1193 327 120 1320 597 3001 1025 49 Spaces Moved 4062 | 51 406 76 426 219 60 567 216 1323 675 43 Core 191 | 1 . . . . . . . . 147 43 Treads 187 | . . . . . . 45 105 . 37 . Legs 3231 | . 3 76 426 219 60 522 111 1323 491 . Wheels 453 | 50 403 . . . . . . . . . Hover . | . . . . . . . . . . . Flight . | . . . . . . . . . . . Fastest Speed 50 | 50 90 120 120 120 190 120 120 120 50 50 Average Speed 147 | 89 91 120 178 128 195 154 166 165 130 50 Slowest Speed 260 | 90 120 120 190 190 260 190 250 260 260 50 Overloaded Moves . | . . . . . . . . . . . Propulsion Burnouts . | . . . . . . . . . . . Robots Hopped . | . . . . . . . . . . . Cave-ins Triggered . | . . . . . . . . . . . Exploration Rate (%) 35 | 3 66 27 28 41 6 75 34 20 79 10 Regions Visited 10 Branch Regions 5 Pre-discovered Areas . | . . . . . . . . . . . Known Exits Taken 4 | . 1 . 1 . . 1 . . 1 . Unknown Exits Taken 5 | 1 . 1 . 1 1 . . 1 . . Scrap Searched 4 | . . . . 1 . . . . 3 . Spaces Dug 4 | . . . . . . 4 . . . . Terrain Destroyed 5 | . . . . . . 5 . . . . Melee . | . . . . . . . . . . . Projectile 5 | . . . . . . 5 . . . . AOE . | . . . . . . . . . . . Terrain Rammed . | . . . . . . . . . . . Walls Destroyed . | . . . . . . . . . . . Machines Disabled . | . . . . . . . . . . . Actions | -11 -10 -10 -9 -9 -8 -8 -8 -7 -7 -7 --------- Run | Scr Mat Min Mat Min Mat Sto Gar Fac Low Low Total 5899 | 67 534 80 837 256 62 852 340 2024 777 70 Wait 1300 | . 86 3 389 24 . 143 33 544 51 27 Move 4053 | 50 405 75 425 218 59 567 215 1322 674 43 Hop . | . . . . . . . . . . . Pick Up 42 | 6 6 1 2 . 1 12 1 11 2 . Fast Attach 40 | 7 . . . 1 . 4 12 13 3 . Attach 26 | . 1 . 3 . 1 6 3 4 8 . Detach 8 | . . . 1 . . . 2 1 4 . Swap 70 | . 9 . 4 4 . 19 9 24 1 . Drop 56 | . 5 1 2 3 . 20 2 21 2 . Fire 256 | 4 18 . 9 3 1 70 54 65 32 . Melee 41 | . 4 . 2 3 . 11 7 14 . . Ram . | . . . . . . . . . . . Kick . | . . . . . . . . . . . Crush . | . . . . . . . . . . . Escape Stasis 2 | . . . . . . . 2 . . . Rewire 5 | . . . . . . . . 5 . . Trap . | . . . . . . . . . . . Miscellaneous . | . . . . . . . . . . . Route ------- -11/Scrapyard -10/Materials (discovered 2 exits: *Mat / *Min) -10/Mines (discovered 2 exits: *Mat x2) -9/Materials -9/Mines -8/Materials -8/Storage (discovered 3 exits: *Fac / Rec / Gar) -8/Garrison -7/Factory (discovered 5 exits: Fac x4 / [*Low]) -7/Lower Caves -7/Lower Caves (discovered 1 exit: *Fac) History --------- Turn | Location | Event 22 | -11/Scrapyard | Discovered new exit (range 15) 75 | -11/Scrapyard | Entered Materials 323 | -10/Materials | Build established: Mutant 390 | -10/Materials | Discovered new exit (range 11) 492 | -10/Materials | Central database locked down 555 | -10/Materials | Repaired Wheel 584 | -10/Materials | Identified exit to Mines 607 | -10/Materials | Entered Mines 622 | -10/Mines | Discovered new exit (range 10) 647 | -10/Mines | Discovered new exit (range 16) 702 | -10/Mines | Entered Materials 702 | -9/Materials | Evolved 2 slots: Utility x1, Weapon x1 703 | -9/Materials | Identified exit to Mines 1663 | -9/Materials | Build established: Skirmisher 1895 | -9/Materials | Entered Mines 1914 | -9/Mines | Found the Drone Emporium 1957 | -9/Mines | Discovered new exit (range 10) 2193 | -9/Mines | A weapon hastily lodged in a ceiling crevice suddenly fell to the ground 2202 | -9/Mines | Assembled infested the area 2207 | -9/Mines | Assisted by a Guerilla fighting off Assembled 2222 | -9/Mines | Entered Materials 2222 | -8/Materials | Evolved 2 slots: Power x1, Weapon x1 2223 | -8/Materials | Discovered new exit (range 8) 2342 | -8/Materials | Entered Storage 2343 | -8/Storage | Identified exit to Recycling 3253 | -8/Storage | Build established: Hacker-Gunner 3445 | -8/Storage | Met a pair of Derelict thieves 3550 | -8/Storage | Discovered new exit (range 11) 3551 | -8/Storage | Central database locked down 3551 | -8/Storage | Identified exit to Factory 3610 | -8/Storage | Core integrity fell below 50% 3662 | -8/Storage | Identified exit to Garrison 3662 | -8/Storage | Entered Garrison 3668 | -8/Garrison | Installed Relay Interface Framework 3719 | -8/Garrison | Build established: Hacker-Mutant 3730 | -8/Garrison | Triggered checkpoint 3814 | -8/Garrison | Triggered checkpoint 3963 | -8/Garrison | Core integrity fell below 20% 4001 | -8/Garrison | Lost 12 parts (3p2n1u6w) 4102 | -8/Garrison | Triggered checkpoint 4231 | -8/Garrison | Discovered exit to Factory (range 10) 4259 | -8/Garrison | Entered Factory 4259 | -7/Factory | Evolved 2 slots: Propulsion x1, Utility x1 4476 | -7/Factory | Build established: Scavenger-Gunner 5140 | -7/Factory | Garrison activated, responded to threat 5142 | -7/Factory | P-70 Sage assimilated allied Commando 4a 5576 | -7/Factory | Repaired Sml. Storage Unit 5715 | -7/Factory | Lost 4 parts (1p2n1u) 6843 | -7/Factory | Identified exit to Factory 7169 | -7/Factory | Discovered new exit (range 10) 7260 | -7/Factory | Entered Lower Caves 7531 | -7/Lower Caves | Lost 3 parts (1p2w) 7700 | -7/Lower Caves | Build established: Scavenger-Skirmisher 7753 | -7/Lower Caves | Encountered a Warlord checkpoint 7771 | -7/Lower Caves | Identified exit to Lower Caves 8117 | -7/Lower Caves | Ambushed by wild Derelicts 8124 | -7/Lower Caves | System corruption reached 10% 8125 | -7/Lower Caves | Lost 4 parts (2n2w) 8131 | -7/Lower Caves | Core integrity fell below 50% 8193 | -7/Lower Caves | Lost 7 parts (1n2u4w) 8270 | -7/Lower Caves | Spotted B-75 Beast 8283 | -7/Lower Caves | Attracted the attention of an 0b10 outpost 8283 | -7/Lower Caves | Core integrity fell below 20% 8285 | -7/Lower Caves | Entered another Lower Caves area 8287 | -7/Lower Caves | Attracted the attention of an 0b10 checkpoint 8298 | -7/Lower Caves | Discovered exit to Factory (range 14) 8334 | -7/Lower Caves | Destroyed by S-27 Virus with Autogun Last Messages --------------- 08183_ System corrupted: Matter fused (-10). 08191_ Acquired 1 matter. 08195_ Critical hit (Burn: +37). 08201_ Dropped Imp. Deuterium Engine. 08201_ Acquired Imp. Deuterium Engine. 08217_ System corrupted: Kinecellerator rejected. 08241_ System corrupted: IFF burst signal emitted. 08241_ Med. Treads destroyed. A strange signal echoes through the caves. 08257_ VCRUBGZB9&TJGYQDX&26BPEBG##: 08261_ Acquired Launcher Guidance Computer. 08272_ JRKZNARMT9OXKQXRZFZ BRD#WM 08277_ Acquired 4 matter. 08278_ Acquired 1 matter. 08282_ Penetrated by Slug. 08283_ Y-64 Sentinel: "DETECTED UNIDENTIFIED DERELICT." LOCATION=LOWER CAVES GOAL=ESCAPE 08287_ Y-54 Guardian: "INTERCEPTING UNREGISTERED DERELICT." 08298_ EXIT=FOUND: FACTORY Map ----- +----------------------------------------------------+ | ?????????????????????????????????????????????????? | | ?????????????????????????????????????????????????? | | ?????????????????????????????????????????????????? | | ?????????????????????????????????????????????????? | | ?????????????????????????????????????????????????? | | ????????#????????????????????????????????????????? | | ?????? ???????????????? ????????????????????? | | ?????? #????????????? ????????????????????? | | ??????? #??????????? < ???????????????????? | | ???????? ##????????? ???????????????????? | | ????????? ???????? ???????????????????? | | ?????????? ??????? ????????????????????? | | ???????????# ?????? #?????????????????????? | | ?????????#### ##??## ##????????????????????? | | ????????## $ ## #????????????????????? | | ????????? ??????????????????????? | | ??? # ?????# ??????????????????????????? | | ?? ##### #?????????????????????????????? | | ????# #?????????????????????????????? | | ?? s####??????????????????????????? | | ??? # # #### s ######?????????????????????? | | ??????????## s #?????????????????????? | | ??????????# ##????????????????????? | | ??????????# ## ##???????????????????? | | ??????????# ##?## ##??????????????????? | | ????####??# #????# ## @ #??????????????????? | | ???## #?# #????# #### ##??????????????????? | | ??## ## ###??# #??##Y #???????????????????? | | ?## ???# #???## ##??????????????????? | | ?# ???# #????# #??????????????????? | | ?# ???# #????#####??????????????????? | | ?? #?### #???????????????????????????? | | ???? ### #???????????????????????????? | | ??????# #???????????????????????????? | | ?????## ##? ##???????????????????????? | | ?????# # #???????????????????????? | | ?????# ## #??????????????????????? | | ?????# #????????????????????? | | ?????# ## ### ### ?????????????????? | | ?????## ## #??##???????##????????????????? | | ??????########## ##?????????????????????????????? | | ???????????????####??????????????????????????????? | | ?????????????????????????????????????????????????? | | ?????????????????????????????????????????????????? | | ?????????????????????????????????????????????????? | | ?????????????????????????????????????????????????? | | ?????????????????????????????????????????????????? | | ?????????????????????????????????????????????????? | | ?????????????????????????????????????????????????? | | ?????????????????????????????????????????????????? | +----------------------------------------------------+ Best States ------------- Heat Dissipation 62 Energy Generation 27 Energy Capacity 480 Matter Stores 300 Matter Capacity 300 Sight Range 16 Robot Scan Range 15 Terrain Scan Density 10 Resistance: KI 20 Resistance: TH 20 Resistance: EX 20 Resistance: EM 20 Resistance: I 20 Resistance: S 20 Resistance: P 20 Evasion (%) 55 Launcher Accuracy 20 Target Analysis 6 Recoil Reduction 3 Kinecelleration 30 Offensive Hacking 20 Defensive Hacking 10 Relay Coupler Types 1 Relay Coupler Value 28 Item Schematics ----------------- Sensor Array | -9/Materials | Scanalyzed System Shield | -8/Storage | Hacked Hacking Suite | -8/Storage | Hacked Remote Datajack | -8/Storage | Hacked Robot Schematics ------------------ None Fabricated ------------ Nothing Alien Tech Used ----------------- None Achievements -------------- None Challenges ------------ None Game ------ Seed PointTargetingBattery Manual? 0 Play Time 01:25:07 Cumulative 70.8 hours Start 2022.04.15 @ 16:50:47 End 2022.04.15 @ 19:10:21 Sessions 1 Manual Loads 0 Difficulty Adventurer Special Mode None Game No. 21 Rogue 1 Adventurer 19 Explorer 1 Win Type - Total 0 Types 0/0/0/0/0/0/0/0/0 Lore% 35 Gallery% 46 Achievement% 36 Wizard Run 0 Options --------- ASCII 0 Keyboard 0 Movement Mouse Keybinds 0 Fullscreen 2 Font 18/X11 Map View 76x50 Tactical HUD 1 Map Filters NONE Filters NONE Steam 1 RUN: 25839239-7a2a-4a18-aaa2-c08a8130097a